[Event "*** Titled Tuesday Blitz"]
[Site "Chess.com"]
[Date "2021.03.09"]
[Round "10"]
[White "Barbix1"]
[Black "DFeco"]
[Result "1-0"]
[WhiteElo "2428"]
[BlackElo "2292"]
[TimeControl "180+1"]
[EndTime "11:59:19 PST"]
[Termination "Barbix1 won by resignation"]

1. e4 {[%clk 0:03:00.9]} 1... e5 {[%clk 0:02:59.7]} 2. Nc3 {[%clk 0:02:56.9]}
2... Nf6 {[%clk 0:02:57.7]} 3. f4 {[%clk 0:02:53]} 3... d5 {[%clk 0:02:57.6]} 4.
fxe5 {[%clk 0:02:50.7]} 4... Nxe4 {[%clk 0:02:57.8]} 5. Nf3 {[%clk 0:02:50.2]}
5... Nc6 {[%clk 0:02:56.3]} 6. Bb5 {[%clk 0:02:47.6]} 6... Bg4 {[%clk
0:02:54.8]} 7. Qe2 {[%clk 0:02:45.1]} 7... Nxc3 {[%clk 0:02:43.6]} 8. dxc3
{[%clk 0:02:46]} 8... Bc5 {[%clk 0:02:40.9]} 9. Bf4 {[%clk 0:02:44.1]} 9... O-O
{[%clk 0:02:40.2]} 10. O-O-O {[%clk 0:02:42.3]} 10... a6 {[%clk 0:02:40.4]} 11.
Bd3 {[%clk 0:02:42.2]} 11... b5 {[%clk 0:02:39.5]} 12. Qe1 {[%clk 0:02:33.9]}
12... b4 {[%clk 0:02:35.6]} 13. c4 {[%clk 0:02:33.5]} 13... d4 {[%clk
0:02:30.3]} 14. Qg3 {[%clk 0:02:28.7]} 14... Bxf3 {[%clk 0:02:27.4]} 15. Qxf3
{[%clk 0:02:27.3]} 15... Ne7 {[%clk 0:02:21.2]} 16. Qe4 {[%clk 0:02:26.1]} 16...
Ng6 {[%clk 0:02:17.7]} 17. h4 {[%clk 0:02:22.2]} 17... f5 {[%clk 0:02:13.1]} 18.
exf6 {[%clk 0:02:16.7]} 18... Qxf6 {[%clk 0:02:11.8]} 19. Bg5 {[%clk 0:02:15.8]}
19... Qe5 {[%clk 0:02:06.4]} 20. Rde1 {[%clk 0:01:55.7]} 20... Qxe4 {[%clk
0:02:00.1]} 21. Bxe4 {[%clk 0:01:56.6]} 21... Rae8 {[%clk 0:01:57.3]} 22. h5
{[%clk 0:01:49.6]} 22... Ne5 {[%clk 0:01:52.5]} 23. Bd5+ {[%clk 0:01:46.9]}
23... Kh8 {[%clk 0:01:51.3]} 24. Re4 {[%clk 0:01:39]} 24... c6 {[%clk
0:01:40.6]} 25. Rhe1 {[%clk 0:01:35.3]} 25... cxd5 {[%clk 0:01:12.7]} 26. cxd5
{[%clk 0:01:36.2]} 26... Bd6 {[%clk 0:01:06.4]} 27. g3 {[%clk 0:01:11.7]} 27...
Rc8 {[%clk 0:00:54.1]} 28. Rxe5 {[%clk 0:01:06.4]} 28... Bxe5 {[%clk 0:00:46.7]}
29. Rxe5 {[%clk 0:01:07.3]} 29... h6 {[%clk 0:00:40]} 30. Bf4 {[%clk 0:00:57.2]}
30... Rfe8 {[%clk 0:00:35]} 31. Rxe8+ {[%clk 0:00:48.7]} 31... Rxe8 {[%clk
0:00:34.4]} 32. Kd2 {[%clk 0:00:49.6]} 32... Kg8 {[%clk 0:00:34.1]} 33. Kd3
{[%clk 0:00:50]} 33... Kf7 {[%clk 0:00:33.9]} 34. Kxd4 {[%clk 0:00:49.1]} 34...
Re2 {[%clk 0:00:34.2]} 35. Kd3 {[%clk 0:00:47.2]} 35... Rh2 {[%clk 0:00:31.4]}
36. a3 {[%clk 0:00:44.4]} 36... bxa3 {[%clk 0:00:22.8]} 37. bxa3 {[%clk
0:00:45.3]} 37... Rxh5 {[%clk 0:00:22.7]} 38. c4 {[%clk 0:00:45.3]} 38... Ke7
{[%clk 0:00:21.5]} 39. Ke4 {[%clk 0:00:42.3]} 39... Rh1 {[%clk 0:00:19.3]} 40.
c5 {[%clk 0:00:42.1]} 40... Kd7 {[%clk 0:00:18.6]} 41. c6+ {[%clk 0:00:42]}
41... Kd8 {[%clk 0:00:18]} 42. d6 {[%clk 0:00:41.2]} 42... Re1+ {[%clk 0:00:18]}
43. Kd5 {[%clk 0:00:41.2]} 43... Rd1+ {[%clk 0:00:17.6]} 44. Kc5 {[%clk
0:00:40.1]} 44... Rc1+ {[%clk 0:00:17.2]} 45. Kb6 {[%clk 0:00:40.5]} 45... g5
{[%clk 0:00:16]} 46. Be5 {[%clk 0:00:40.4]} 46... Rb1+ {[%clk 0:00:13.5]} 47.
Kxa6 {[%clk 0:00:40.3]} 47... h5 {[%clk 0:00:12.1]} 48. Bf6+ {[%clk 0:00:39.8]}
48... Ke8 {[%clk 0:00:12]} 49. d7+ {[%clk 0:00:40.5]} 49... Kf7 {[%clk
0:00:11.9]} 50. d8=Q {[%clk 0:00:41.4]} 1-0

[Event "*** Titled Tuesday Blitz"]
[Site "Chess.com"]
[Date "2021.03.09"]
[Round "10"]
[White "vovachesss"]
[Black "rpragchess"]
[Result "0-1"]
[WhiteElo "2702"]
[BlackElo "2917"]
[TimeControl "180+1"]
[EndTime "11:59:21 PST"]
[Termination "rpragchess won by resignation"]

1. c4 {[%clk 0:03:00.9]} 1... g6 {[%clk 0:02:59.8]} 2. g3 {[%clk 0:03:00.2]}
2... Bg7 {[%clk 0:03:00]} 3. Bg2 {[%clk 0:03:00.9]} 3... d6 {[%clk 0:03:00.6]}
4. Nc3 {[%clk 0:03:01.1]} 4... h5 {[%clk 0:02:58.3]} 5. h4 {[%clk 0:03:00.5]}
5... c5 {[%clk 0:02:54.4]} 6. e3 {[%clk 0:03:00.4]} 6... Nc6 {[%clk 0:02:54]} 7.
Nge2 {[%clk 0:03:01.1]} 7... Bf5 {[%clk 0:02:47.2]} 8. d4 {[%clk 0:02:58.1]}
8... cxd4 {[%clk 0:02:43.6]} 9. Nxd4 {[%clk 0:02:51.5]} 9... Bd7 {[%clk
0:02:43.6]} 10. O-O {[%clk 0:02:50.5]} 10... Nh6 {[%clk 0:02:42.6]} 11. b3
{[%clk 0:02:32.9]} 11... Nf5 {[%clk 0:02:30.5]} 12. Bb2 {[%clk 0:02:07.3]} 12...
Ncxd4 {[%clk 0:02:25.6]} 13. exd4 {[%clk 0:02:06.7]} 13... Bxd4 {[%clk
0:02:26.2]} 14. Bxb7 {[%clk 0:01:57.3]} 14... Rb8 {[%clk 0:02:24]} 15. Be4
{[%clk 0:01:50]} 15... e5 {[%clk 0:02:15.4]} 16. Kg2 {[%clk 0:01:34.5]} 16... g5
{[%clk 0:02:06.3]} 17. Qf3 {[%clk 0:01:21.6]} 17... Ng7 {[%clk 0:01:39.1]} 18.
Bd5 {[%clk 0:01:10.8]} 18... f5 {[%clk 0:01:25.1]} 19. Rh1 {[%clk 0:00:54.1]}
19... g4 {[%clk 0:01:07.4]} 20. Qd3 {[%clk 0:00:51.4]} 20... Qf6 {[%clk
0:01:07.7]} 21. Nd1 {[%clk 0:00:39.5]} 21... Bxb2 {[%clk 0:00:59.5]} 22. Nxb2
{[%clk 0:00:39.6]} 22... f4 {[%clk 0:01:00.4]} 23. Nd1 {[%clk 0:00:34.9]} 23...
Bf5 {[%clk 0:00:52.1]} 24. Be4 {[%clk 0:00:31.9]} 24... Bxe4+ {[%clk 0:00:51.9]}
25. Qxe4 {[%clk 0:00:32.8]} 25... O-O {[%clk 0:00:52.2]} 26. Re1 {[%clk
0:00:14.7]} 26... Nf5 {[%clk 0:00:49.8]} 27. Nc3 {[%clk 0:00:10.6]} 27... fxg3
{[%clk 0:00:49.6]} 28. fxg3 {[%clk 0:00:10.8]} 28... Nxg3 {[%clk 0:00:47.5]} 29.
Qe3 {[%clk 0:00:02.1]} 29... Nf5 {[%clk 0:00:45.6]} 30. Qg5+ {[%clk 0:00:02.1]}
30... Qxg5 {[%clk 0:00:45.6]} 31. hxg5 {[%clk 0:00:03]} 31... Kg7 {[%clk
0:00:44.1]} 32. Ne4 {[%clk 0:00:03]} 32... Kg6 {[%clk 0:00:44.6]} 33. Rad1
{[%clk 0:00:03.4]} 33... Rbd8 {[%clk 0:00:44.6]} 34. Rd5 {[%clk 0:00:03.2]}
34... h4 {[%clk 0:00:43.2]} 35. Ra5 {[%clk 0:00:03.1]} 35... h3+ {[%clk
0:00:41.9]} 36. Kh2 {[%clk 0:00:03.4]} 36... Rf7 {[%clk 0:00:42.2]} 37. Ra6
{[%clk 0:00:03.2]} 37... Kh5 {[%clk 0:00:41.7]} 38. Nf6+ {[%clk 0:00:02.8]}
38... Kxg5 {[%clk 0:00:40.9]} 39. Ne4+ {[%clk 0:00:03.4]} 39... Kh4 {[%clk
0:00:41.4]} 40. Rf1 {[%clk 0:00:03.7]} 40... Rdf8 {[%clk 0:00:39.1]} 41. Nxd6
{[%clk 0:00:02.9]} 41... g3+ {[%clk 0:00:38.3]} 42. Kg1 {[%clk 0:00:02.6]} 42...
h2+ {[%clk 0:00:38.2]} 43. Kh1 {[%clk 0:00:02.4]} 43... Nxd6 {[%clk 0:00:38.3]}
44. Rxf7 {[%clk 0:00:01.8]} 44... Rxf7 {[%clk 0:00:39.2]} 0-1

[Event "*** Titled Tuesday Blitz"]
[Site "Chess.com"]
[Date "2021.03.09"]
[Round "10"]
[White "Savagelittlemole"]
[Black "Trickov"]
[Result "1/2-1/2"]
[WhiteElo "2521"]
[BlackElo "2390"]
[TimeControl "180+1"]
[EndTime "11:59:24 PST"]
[Termination "Game drawn by repetition"]

1. e4 {[%clk 0:03:00.9]} 1... c5 {[%clk 0:02:47.5]} 2. Ne2 {[%clk 0:03:00.1]}
2... d6 {[%clk 0:02:45]} 3. g3 {[%clk 0:03:00]} 3... Nc6 {[%clk 0:02:41.3]} 4.
Bg2 {[%clk 0:03:00.6]} 4... g6 {[%clk 0:02:40.6]} 5. c3 {[%clk 0:03:00.9]} 5...
Bg7 {[%clk 0:02:39.3]} 6. d4 {[%clk 0:03:01.5]} 6... Nf6 {[%clk 0:02:38.7]} 7.
O-O {[%clk 0:03:01]} 7... O-O {[%clk 0:02:38.1]} 8. h3 {[%clk 0:03:01.3]} 8...
e5 {[%clk 0:02:35.9]} 9. Be3 {[%clk 0:03:00.6]} 9... b6 {[%clk 0:02:35.4]} 10.
Na3 {[%clk 0:02:55.4]} 10... Ba6 {[%clk 0:02:34.4]} 11. d5 {[%clk 0:02:52.2]}
11... Ne7 {[%clk 0:02:32]} 12. c4 {[%clk 0:02:51.2]} 12... Nh5 {[%clk
0:02:28.8]} 13. Qc2 {[%clk 0:02:39.5]} 13... f5 {[%clk 0:02:21.2]} 14. f4 {[%clk
0:02:28.8]} 14... fxe4 {[%clk 0:02:11.6]} 15. Bxe4 {[%clk 0:02:17]} 15... Qd7
{[%clk 0:01:36.6]} 16. g4 {[%clk 0:02:15.7]} 16... exf4 {[%clk 0:01:31.3]} 17.
Nxf4 {[%clk 0:02:13.3]} 17... Ng3 {[%clk 0:01:30.6]} 18. Rf2 {[%clk 0:02:09.1]}
18... Nxe4 {[%clk 0:01:29.2]} 19. Qxe4 {[%clk 0:02:10]} 19... Rae8 {[%clk
0:01:20.5]} 20. Raf1 {[%clk 0:01:59.7]} 20... Rxf4 {[%clk 0:00:57.5]} 21. Bxf4
{[%clk 0:01:51.2]} 21... Bd4 {[%clk 0:00:54.9]} 22. Qf3 {[%clk 0:01:04.7]} 22...
Rf8 {[%clk 0:00:46.3]} 23. Qe2 {[%clk 0:00:58.4]} 23... Rxf4 {[%clk 0:00:43.6]}
24. b3 {[%clk 0:00:43.7]} 24... Bc8 {[%clk 0:00:40.3]} 25. Nb5 {[%clk
0:00:42.3]} 25... Bxf2+ {[%clk 0:00:38.9]} 26. Rxf2 {[%clk 0:00:43.2]} 26...
Rxf2 {[%clk 0:00:38.5]} 27. Qxf2 {[%clk 0:00:43.8]} 27... a6 {[%clk 0:00:36.2]}
28. Nc3 {[%clk 0:00:38.1]} 28... Kg7 {[%clk 0:00:34.4]} 29. Ne4 {[%clk
0:00:37.8]} 29... Ng8 {[%clk 0:00:33.5]} 30. Qf4 {[%clk 0:00:37.5]} 30... Qe7
{[%clk 0:00:28.4]} 31. Nxd6 {[%clk 0:00:36]} 31... Bd7 {[%clk 0:00:27.9]} 32.
Ne4 {[%clk 0:00:21.9]} 32... Nf6 {[%clk 0:00:20]} 33. Nxf6 {[%clk 0:00:15.2]}
33... Qxf6 {[%clk 0:00:19.9]} 34. Qc7 {[%clk 0:00:15.8]} 34... Qd4+ {[%clk
0:00:15.5]} 35. Kg2 {[%clk 0:00:13.9]} 35... Qd2+ {[%clk 0:00:15.3]} 36. Kg3
{[%clk 0:00:11.9]} 36... Qe1+ {[%clk 0:00:15]} 37. Kg2 {[%clk 0:00:11.7]} 37...
Qe2+ {[%clk 0:00:14.7]} 38. Kg3 {[%clk 0:00:12.3]} 38... Qe3+ {[%clk 0:00:14.6]}
39. Kg2 {[%clk 0:00:12.9]} 39... Qe2+ {[%clk 0:00:14.9]} 40. Kg3 {[%clk
0:00:13.4]} 40... Qe3+ {[%clk 0:00:15]} 41. Kg2 {[%clk 0:00:13.8]} 41... Qe2+
{[%clk 0:00:15.2]} 1/2-1/2

[Event "*** Titled Tuesday Blitz"]
[Site "Chess.com"]
[Date "2021.03.09"]
[Round "10"]
[White "Herman-NY"]
[Black "barbara25"]
[Result "1-0"]
[WhiteElo "2458"]
[BlackElo "2292"]
[TimeControl "180+1"]
[EndTime "11:59:24 PST"]
[Termination "Herman-NY won by resignation"]

1. e4 {[%clk 0:03:00.9]} 1... c5 {[%clk 0:02:58.8]} 2. Nf3 {[%clk 0:03:01]} 2...
d6 {[%clk 0:02:59.3]} 3. d4 {[%clk 0:03:01.6]} 3... cxd4 {[%clk 0:02:59.1]} 4.
Nxd4 {[%clk 0:03:02.5]} 4... Nf6 {[%clk 0:02:59.6]} 5. Nc3 {[%clk 0:03:03.2]}
5... a6 {[%clk 0:03:00.2]} 6. Bc4 {[%clk 0:03:03.4]} 6... e6 {[%clk 0:03:00.4]}
7. a3 {[%clk 0:03:03.9]} 7... Be7 {[%clk 0:03:00.9]} 8. Ba2 {[%clk 0:03:04]}
8... O-O {[%clk 0:03:01.6]} 9. g4 {[%clk 0:03:04.2]} 9... Nc6 {[%clk 0:03:02.2]}
10. g5 {[%clk 0:03:03.9]} 10... Ne8 {[%clk 0:03:00.8]} 11. Rg1 {[%clk
0:03:03.7]} 11... Nxd4 {[%clk 0:03:00.7]} 12. Qxd4 {[%clk 0:03:03.9]} 12... e5
{[%clk 0:03:01.1]} 13. Qd3 {[%clk 0:02:51.8]} 13... Nc7 {[%clk 0:03:01.2]} 14.
Be3 {[%clk 0:02:44.8]} 14... Be6 {[%clk 0:03:01.2]} 15. Bb6 {[%clk 0:02:26.4]}
15... Bxa2 {[%clk 0:02:31.9]} 16. Rxa2 {[%clk 0:02:21.5]} 16... Qd7 {[%clk
0:02:32.2]} 17. Bxc7 {[%clk 0:02:20.8]} 17... Qxc7 {[%clk 0:02:32.5]} 18. Nd5
{[%clk 0:02:21.1]} 18... Qd8 {[%clk 0:02:31.3]} 19. h4 {[%clk 0:02:14.3]} 19...
Rc8 {[%clk 0:02:29.2]} 20. a4 {[%clk 0:01:59.6]} 20... Re8 {[%clk 0:02:29.4]}
21. a5 {[%clk 0:01:56.4]} 21... Bf8 {[%clk 0:02:28.3]} 22. c4 {[%clk 0:01:33.9]}
22... Rc5 {[%clk 0:02:23.2]} 23. b4 {[%clk 0:01:33.6]} 23... Rc8 {[%clk
0:02:19.1]} 24. h5 {[%clk 0:01:14.5]} 24... Re6 {[%clk 0:02:19.1]} 25. Rg3
{[%clk 0:00:57.9]} 25... Rc6 {[%clk 0:02:02.3]} 26. Kd2 {[%clk 0:00:55.9]} 26...
Qc8 {[%clk 0:02:00.9]} 27. Kc3 {[%clk 0:00:55.8]} 27... Qd7 {[%clk 0:01:50.1]}
28. Kb3 {[%clk 0:00:54]} 28... Re8 {[%clk 0:01:48.8]} 29. Ra1 {[%clk 0:00:46.1]}
29... Rec8 {[%clk 0:01:47.2]} 30. Rc1 {[%clk 0:00:44]} 30... Re8 {[%clk
0:01:39.7]} 31. Qf3 {[%clk 0:00:41.7]} 31... Qe6 {[%clk 0:01:32.9]} 32. h6
{[%clk 0:00:38.1]} 32... Rec8 {[%clk 0:01:29]} 33. hxg7 {[%clk 0:00:30.5]} 33...
Bxg7 {[%clk 0:01:29.2]} 34. Qf5 {[%clk 0:00:22.6]} 34... Qxf5 {[%clk 0:01:24.6]}
35. exf5 {[%clk 0:00:23.5]} 35... Re8 {[%clk 0:01:19.7]} 36. f6 {[%clk
0:00:13.8]} 36... Bf8 {[%clk 0:01:19.6]} 37. Re1 {[%clk 0:00:13.2]} 37... e4
{[%clk 0:01:19.5]} 38. Rg4 {[%clk 0:00:13.3]} 38... e3 {[%clk 0:01:07.4]} 39.
Rxe3 {[%clk 0:00:10.7]} 39... Rec8 {[%clk 0:01:07]} 40. Rh3 {[%clk 0:00:09.7]}
40... Rd8 {[%clk 0:01:01.3]} 41. f4 {[%clk 0:00:09.2]} 41... Rcc8 {[%clk
0:01:00.5]} 42. f5 {[%clk 0:00:09.5]} 42... Re8 {[%clk 0:01:00.9]} 43. Rgh4
{[%clk 0:00:09.7]} 43... h6 {[%clk 0:00:59.1]} 44. g6 {[%clk 0:00:09.2]} 44...
Re1 {[%clk 0:00:47.5]} 45. g7 {[%clk 0:00:07.5]} 45... Bxg7 {[%clk 0:00:47.8]}
46. Rg4 {[%clk 0:00:06.4]} 46... Rb1+ {[%clk 0:00:42.1]} 47. Ka2 {[%clk
0:00:05.5]} 47... Rc1 {[%clk 0:00:41.2]} 48. Rxg7+ {[%clk 0:00:05.7]} 48... Kf8
{[%clk 0:00:41.4]} 49. Rxh6 {[%clk 0:00:06.1]} 49... Rc2+ {[%clk 0:00:41.8]} 50.
Kb3 {[%clk 0:00:06.1]} 50... Rh2 {[%clk 0:00:42]} 51. Rxh2 {[%clk 0:00:06]} 1-0

[Event "*** Titled Tuesday Blitz"]
[Site "Chess.com"]
[Date "2021.03.09"]
[Round "10"]
[White "noblerone"]
[Black "Chernov_Alexander_A"]
[Result "1/2-1/2"]
[WhiteElo "2388"]
[BlackElo "2279"]
[TimeControl "180+1"]
[EndTime "11:59:24 PST"]
[Termination "Game drawn by repetition"]

1. d4 {[%clk 0:03:00.9]} 1... Nf6 {[%clk 0:02:57.4]} 2. Nf3 {[%clk 0:03:00.8]}
2... e6 {[%clk 0:02:56.3]} 3. Bg5 {[%clk 0:03:00.7]} 3... c5 {[%clk 0:02:55.5]}
4. e3 {[%clk 0:03:00.4]} 4... b6 {[%clk 0:02:54.7]} 5. Nbd2 {[%clk 0:02:54.4]}
5... Bb7 {[%clk 0:02:54.5]} 6. Bd3 {[%clk 0:02:54.9]} 6... Be7 {[%clk
0:02:50.9]} 7. c3 {[%clk 0:02:54.9]} 7... O-O {[%clk 0:02:46.4]} 8. O-O {[%clk
0:02:55]} 8... d5 {[%clk 0:02:45.2]} 9. Ne5 {[%clk 0:02:48.1]} 9... Nbd7 {[%clk
0:02:37.9]} 10. f4 {[%clk 0:02:46.9]} 10... Ne4 {[%clk 0:02:36.8]} 11. Bxe7
{[%clk 0:02:42.3]} 11... Qxe7 {[%clk 0:02:36.5]} 12. Nxd7 {[%clk 0:02:16.6]}
12... Qxd7 {[%clk 0:02:35.4]} 13. Nf3 {[%clk 0:02:05.7]} 13... cxd4 {[%clk
0:02:25.3]} 14. exd4 {[%clk 0:02:03.9]} 14... f6 {[%clk 0:02:14.5]} 15. Qe2
{[%clk 0:01:58.2]} 15... a6 {[%clk 0:02:09.7]} 16. Nd2 {[%clk 0:01:53.2]} 16...
f5 {[%clk 0:02:05.7]} 17. Nf3 {[%clk 0:01:53.2]} 17... b5 {[%clk 0:01:57]} 18.
Ne5 {[%clk 0:01:51.2]} 18... Qd6 {[%clk 0:01:56.6]} 19. a3 {[%clk 0:01:35.5]}
19... Bc6 {[%clk 0:01:41.3]} 20. g4 {[%clk 0:01:11.5]} 20... g6 {[%clk
0:01:38.6]} 21. g5 {[%clk 0:01:04.7]} 21... Rfb8 {[%clk 0:01:16.5]} 22. Rf3
{[%clk 0:00:25.9]} 22... Be8 {[%clk 0:01:14.8]} 23. h4 {[%clk 0:00:26.1]} 23...
a5 {[%clk 0:01:13.5]} 24. h5 {[%clk 0:00:26.2]} 24... Ra7 {[%clk 0:00:55.6]} 25.
Rh3 {[%clk 0:00:24.8]} 25... Rbb7 {[%clk 0:00:53.1]} 26. Kg2 {[%clk 0:00:21.9]}
26... gxh5 {[%clk 0:00:51.6]} 27. Qc2 {[%clk 0:00:20.4]} 27... Bg6 {[%clk
0:00:47.7]} 28. Be2 {[%clk 0:00:19.9]} 28... b4 {[%clk 0:00:41.6]} 29. axb4
{[%clk 0:00:19.4]} 29... axb4 {[%clk 0:00:41.3]} 30. Rxa7 {[%clk 0:00:20.3]}
30... Rxa7 {[%clk 0:00:41.2]} 31. Bxh5 {[%clk 0:00:20.8]} 31... Bxh5 {[%clk
0:00:22.9]} 32. Rxh5 {[%clk 0:00:21.7]} 32... bxc3 {[%clk 0:00:22.4]} 33. bxc3
{[%clk 0:00:19.5]} 33... Qa3 {[%clk 0:00:20.6]} 34. Rh6 {[%clk 0:00:16.1]} 34...
Qa2 {[%clk 0:00:17]} 35. Qxa2 {[%clk 0:00:15.1]} 35... Rxa2+ {[%clk 0:00:16.8]}
36. Kg1 {[%clk 0:00:14.2]} 36... Ra1+ {[%clk 0:00:15.8]} 37. Kg2 {[%clk
0:00:13.7]} 37... Ra2+ {[%clk 0:00:15.9]} 38. Kf1 {[%clk 0:00:12.6]} 38... Ra1+
{[%clk 0:00:14.2]} 39. Kg2 {[%clk 0:00:11.3]} 39... Ra2+ {[%clk 0:00:13.5]}
1/2-1/2

[Event "*** Titled Tuesday Blitz"]
[Site "Chess.com"]
[Date "2021.03.09"]
[Round "10"]
[White "The_filthy"]
[Black "rynos0411"]
[Result "0-1"]
[WhiteElo "2324"]
[BlackElo "2448"]
[TimeControl "180+1"]
[EndTime "11:59:26 PST"]
[Termination "rynos0411 won on time"]

1. e4 {[%clk 0:03:00.9]} 1... c6 {[%clk 0:03:00.2]} 2. Nf3 {[%clk 0:02:59.9]}
2... d5 {[%clk 0:03:01.1]} 3. Nc3 {[%clk 0:03:00]} 3... dxe4 {[%clk 0:03:01.3]}
4. Nxe4 {[%clk 0:03:00.4]} 4... Nf6 {[%clk 0:03:02.2]} 5. Nxf6+ {[%clk 0:03:00]}
5... exf6 {[%clk 0:03:03.1]} 6. d4 {[%clk 0:03:00.3]} 6... Bd6 {[%clk
0:03:03.5]} 7. Bd3 {[%clk 0:03:00.9]} 7... O-O {[%clk 0:03:04]} 8. Be3 {[%clk
0:03:01.6]} 8... Bg4 {[%clk 0:03:04.5]} 9. c3 {[%clk 0:03:01.6]} 9... Re8 {[%clk
0:03:04.8]} 10. Qc2 {[%clk 0:03:02.1]} 10... g6 {[%clk 0:02:56]} 11. O-O-O
{[%clk 0:03:01.6]} 11... Nd7 {[%clk 0:02:55.6]} 12. h3 {[%clk 0:03:01.5]} 12...
Bxf3 {[%clk 0:02:55.9]} 13. gxf3 {[%clk 0:03:02.4]} 13... Qc7 {[%clk 0:02:54.1]}
14. h4 {[%clk 0:02:59.4]} 14... Bf4 {[%clk 0:02:53.5]} 15. h5 {[%clk 0:02:59]}
15... Nf8 {[%clk 0:02:50.8]} 16. hxg6 {[%clk 0:02:58.2]} 16... fxg6 {[%clk
0:02:49]} 17. Rdg1 {[%clk 0:02:55.1]} 17... Bxe3+ {[%clk 0:02:42.9]} 18. fxe3
{[%clk 0:02:53.5]} 18... Rxe3 {[%clk 0:02:40]} 19. Be4 {[%clk 0:02:36.3]} 19...
Qf4 {[%clk 0:02:32.5]} 20. Qb3+ {[%clk 0:02:22.2]} 20... Kh8 {[%clk 0:02:13.3]}
21. Kb1 {[%clk 0:02:20.3]} 21... f5 {[%clk 0:02:08.8]} 22. Bc2 {[%clk
0:02:11.4]} 22... Qc7 {[%clk 0:02:00.2]} 23. Qc4 {[%clk 0:02:01.4]} 23... Rae8
{[%clk 0:01:59.1]} 24. Bb3 {[%clk 0:01:57.1]} 24... Qg7 {[%clk 0:01:51.9]} 25.
a4 {[%clk 0:01:53.3]} 25... Nd7 {[%clk 0:01:45.3]} 26. a5 {[%clk 0:01:43.2]}
26... Nf6 {[%clk 0:01:40.5]} 27. Qf7 {[%clk 0:01:20.6]} 27... R3e7 {[%clk
0:01:15.6]} 28. Qc4 {[%clk 0:01:11.7]} 28... Nd5 {[%clk 0:01:13.9]} 29. Qc5
{[%clk 0:01:09.5]} 29... Nc7 {[%clk 0:00:37.6]} 30. Bc2 {[%clk 0:01:02.9]} 30...
a6 {[%clk 0:00:34]} 31. Bxf5 {[%clk 0:00:55.3]} 31... Nd5 {[%clk 0:00:26.4]} 32.
Ka2 {[%clk 0:00:40.7]} 32... Qf7 {[%clk 0:00:15.8]} 33. Bxg6 {[%clk 0:00:30.4]}
33... Nxc3+ {[%clk 0:00:15.6]} 34. Ka3 {[%clk 0:00:24.7]} 34... Qa2+ {[%clk
0:00:15.4]} 35. Kb4 {[%clk 0:00:21.8]} 35... Nd5+ {[%clk 0:00:12.2]} 36. Qxd5
{[%clk 0:00:16.4]} 36... cxd5 {[%clk 0:00:12.5]} 37. Bxe8 {[%clk 0:00:13.2]}
37... Qc4+ {[%clk 0:00:10.2]} 0-1

[Event "*** Titled Tuesday Blitz"]
[Site "Chess.com"]
[Date "2021.03.09"]
[Round "10"]
[White "eguindy"]
[Black "Grineva_Marianna"]
[Result "1-0"]
[WhiteElo "2446"]
[BlackElo "2280"]
[TimeControl "180+1"]
[EndTime "11:59:38 PST"]
[Termination "eguindy won by checkmate"]

1. e4 {[%clk 0:03:00.9]} 1... c5 {[%clk 0:03:00.1]} 2. Nf3 {[%clk 0:03:00.5]}
2... d6 {[%clk 0:03:00.4]} 3. d4 {[%clk 0:03:00.5]} 3... cxd4 {[%clk 0:02:59.8]}
4. Nxd4 {[%clk 0:03:01]} 4... Nf6 {[%clk 0:03:00.3]} 5. Nc3 {[%clk 0:03:01.3]}
5... g6 {[%clk 0:03:00.2]} 6. b3 {[%clk 0:02:55.3]} 6... Bg7 {[%clk 0:03:00]} 7.
Bb2 {[%clk 0:02:55.8]} 7... O-O {[%clk 0:02:59.1]} 8. Qe2 {[%clk 0:02:56.3]}
8... Nc6 {[%clk 0:02:58.2]} 9. Nxc6 {[%clk 0:02:54.3]} 9... bxc6 {[%clk
0:02:57.9]} 10. O-O-O {[%clk 0:02:54.4]} 10... Qa5 {[%clk 0:02:56.8]} 11. h3
{[%clk 0:02:47.9]} 11... Nd7 {[%clk 0:02:37.3]} 12. Qc4 {[%clk 0:02:34.8]} 12...
Ne5 {[%clk 0:02:24.8]} 13. Qa4 {[%clk 0:02:33.4]} 13... Qb6 {[%clk 0:02:18.6]}
14. Qd4 {[%clk 0:02:17.2]} 14... Qc7 {[%clk 0:02:07.3]} 15. f4 {[%clk
0:02:13.5]} 15... c5 {[%clk 0:01:48]} 16. Nd5 {[%clk 0:02:12.5]} 16... Qb7
{[%clk 0:01:31]} 17. Qc3 {[%clk 0:02:09.7]} 17... e6 {[%clk 0:01:31.2]} 18. fxe5
{[%clk 0:01:49.9]} 18... exd5 {[%clk 0:01:30.4]} 19. Rxd5 {[%clk 0:01:44.9]}
19... Be6 {[%clk 0:01:20]} 20. Bc4 {[%clk 0:01:42.8]} 20... Rad8 {[%clk
0:01:10.2]} 21. Qg3 {[%clk 0:01:39.4]} 21... Bxd5 {[%clk 0:01:06.2]} 22. Bxd5
{[%clk 0:01:39.3]} 22... Qa6 {[%clk 0:01:05.4]} 23. Rf1 {[%clk 0:01:32]} 23...
Qxa2 {[%clk 0:01:00.2]} 24. Bc3 {[%clk 0:01:31.7]} 24... dxe5 {[%clk 0:00:56.1]}
25. Kd2 {[%clk 0:01:29.2]} 25... Qa6 {[%clk 0:00:54.6]} 26. Qf3 {[%clk
0:01:27.9]} 26... Rd7 {[%clk 0:00:52.6]} 27. Qd3 {[%clk 0:01:24.3]} 27... Qd6
{[%clk 0:00:47.9]} 28. Qc4 {[%clk 0:01:20.3]} 28... Bh6+ {[%clk 0:00:47.2]} 29.
Ke2 {[%clk 0:01:20.1]} 29... Re7 {[%clk 0:00:40.2]} 30. Rf3 {[%clk 0:01:17.5]}
30... Bf4 {[%clk 0:00:33]} 31. g3 {[%clk 0:01:16.2]} 31... Bh6 {[%clk
0:00:31.7]} 32. b4 {[%clk 0:01:14.7]} 32... Rc7 {[%clk 0:00:24.9]} 33. b5 {[%clk
0:01:02]} 33... Bg7 {[%clk 0:00:24.2]} 34. Bb2 {[%clk 0:00:59.2]} 34... Qe7
{[%clk 0:00:23.1]} 35. Kf2 {[%clk 0:00:46.6]} 35... h6 {[%clk 0:00:23.3]} 36.
Kg2 {[%clk 0:00:45.1]} 36... Kh7 {[%clk 0:00:23.6]} 37. Qd3 {[%clk 0:00:38.4]}
37... Rd7 {[%clk 0:00:17.1]} 38. c4 {[%clk 0:00:38]} 38... Rd6 {[%clk
0:00:16.1]} 39. Qe3 {[%clk 0:00:35.7]} 39... Rf6 {[%clk 0:00:16.6]} 40. Rxf6
{[%clk 0:00:28.3]} 40... Bxf6 {[%clk 0:00:17.5]} 41. h4 {[%clk 0:00:28.2]} 41...
Rd8 {[%clk 0:00:16.6]} 42. Ba3 {[%clk 0:00:24.4]} 42... Rc8 {[%clk 0:00:15.8]}
43. Qb3 {[%clk 0:00:22.8]} 43... Rc7 {[%clk 0:00:16.2]} 44. Qa4 {[%clk
0:00:22.3]} 44... Qd6 {[%clk 0:00:15.6]} 45. Qa5 {[%clk 0:00:19.2]} 45... Bd8
{[%clk 0:00:15.9]} 46. Qd2 {[%clk 0:00:17.4]} 46... f5 {[%clk 0:00:16.2]} 47.
Bc1 {[%clk 0:00:16.8]} 47... fxe4 {[%clk 0:00:15.6]} 48. Qxh6# {[%clk
0:00:16.2]} 1-0